Cogmind - Beta 16 *** ADVENTURER MODE // 2025.12.22 @ 20:04:39 Player: LordNinjaChicken Result: Self-destructed Performance ------------- Evolutions (4) 2000 Regions Visited (8) 1600 Robots Destroyed (21) 105 Value Destroyed (450) 450 Prototype IDs (0) 0 Alien Tech Used (0) 0 Bonus (500) 500 TOTAL SCORE: 4655 Bonus ------- Entered DSFs 500 Cogmind --------- Core Integrity 803/850 Matter 12/300 Energy 100/100 System Corruption 2% Temperature Cool (2) Movement Flying (35) Location -6/Factory Parts ------- > --- POWER (2) -------- (None) > --- PROPULSION (4) --- Cesium-ion Thruster Cesium-ion Thruster > --- UTILITY (6) ------ Improved Signal Interpreter Hacking Suite > --- WEAPON (3) ------- (None) > --- INVENTORY (5) ---- Light Nuclear Core VTOL Module Reaction Control System Shock Rifle Remote Datajack Peak State ------------ > --- POWER ------------ Light Nuclear Core > --- PROPULSION ------- VTOL Module Cesium-ion Thruster Cesium-ion Thruster > --- UTILITY ---------- Sensor Array Improved Signal Interpreter ECM Suite Hacking Suite > --- WEAPON ----------- Assault Rifle > --- INVENTORY -------- VTOL Module VTOL Module Reaction Control System Shock Rifle [Rating: 21] Favorites ----------- Power Light Ion Engine Engine Light Ion Engine Power Core Light Nuclear Core Propulsion Cesium-ion Thruster Leg Aluminum Leg Hover Unit Improved Hover Unit Flight Unit Cesium-ion Thruster Utility ECM Suite Device ECM Suite Processor Signal Interpreter Hackware Hacking Suite Weapon Assault Rifle Energy Gun Field Laser Ballistic Gun Assault Rifle Ballistic Cannon Assault Cannon Launcher Improved Grenade Launcher Build | -11 -10 -10 -9 -9 -8 -7 -7 -6 ------- Run | Yrd Mat Min Mat Min Mat Fac DSF Fac Slots Evolved 8 | . . . 2 . 2 2 . 2 Power 1 | . . . . . . 1 . . Propulsion 2 | . . . 1 . . 1 . . Utility 4 | . . . 1 . 2 . . 1 Weapon 1 | . . . . . . . . 1 Parts Attached 31 | 5 1 11 8 1 5 . . . Power 6 | 1 . 3 1 . 1 . . . Engine 4 | 1 . 2 1 . . . . . Core 2 | . . 1 . . 1 . . . Reactor . | . . . . . . . . . Propulsion 11 | 2 . 5 1 1 2 . . . Treads . | . . . . . . . . . Leg 2 | 2 . . . . . . . . Wheel . | . . . . . . . . . Hover 4 | . . 2 1 1 . . . . Flight 5 | . . 3 . . 2 . . . Utility 6 | . 1 . 3 . 2 . . . Device 3 | . 1 . 2 . . . . . Storage . | . . . . . . . . . Processor 2 | . . . 1 . 1 . . . Hackware 1 | . . . . . 1 . . . Protection . | . . . . . . . . . Artifact . | . . . . . . . . . Weapon 8 | 2 . 3 3 . . . . . Energy Gun 2 | 1 . . 1 . . . . . Energy Cannon . | . . . . . . . . . Ballistic Gun 4 | 1 . 2 1 . . . . . Ballistic Cannon 1 | . . . 1 . . . . . Launcher 1 | . . 1 . . . . . . Special Weapon . | . . . . . . . . . Impact Weapon . | . . . . . . . . . Slashing Weapon . | . . . . . . . . . Piercing Weapon . | . . . . . . . . . Special Melee Weapon . | . . . . . . . . . Unidentified Prototypes . | . . . . . . . . . Parts Lost 10 | . . 6 2 . . . 1 1 Power 2 | . . 2 . . . . . . Propulsion 2 | . . 1 1 . . . . . Utility 3 | . . 1 . . . . 1 1 Weapon 3 | . . 2 1 . . . . . Highest Loss Streak 4 | . . 4 1 . . . 1 1 To Critical Strikes . | . . . . . . . . . Average Backups 2 | . . 1 3 2 3 4 5 5 Power . | . . . . . . . 1 1 Propulsion . | . . . . . . 1 1 1 Utility . | . . . . 2 2 1 1 1 Weapon 1 | . . . 2 . . 1 1 1 Tool/Special . | . . . . . . . . . Unused Backups 6 | . . 1 . . . 1 . 4 Power . | . . . . . . . . . Propulsion 3 | . . 1 . . . 1 . 1 Utility 1 | . . . . . . . . 1 Weapon 1 | . . . . . . . . 1 Tool/Special 1 | . . . . . . . . 1 Average Slot Usage (%) 66 | . 79 71 68 80 69 56 43 29 Engine 7 | . 14 9 11 11 6 . . . Leg 3 | . 28 2 . . . . . . Hover 6 | . . 4 8 22 13 . . . Flight 12 | . . 18 12 11 8 18 15 13 Device 12 | . 8 10 14 17 18 15 12 2 Processor 6 | . . . 10 11 9 7 7 6 Hackware 1 | . . . . . 3 7 7 6 Energy Gun 3 | . 14 . 5 . . . . . Ballistic Gun 8 | . 14 21 1 8 9 3 . . Launcher 1 | . . 1 3 . . . . . Peak Build Rating 21 | 5 6 9 15 11 21 21 15 14 Average Rating 10 | 3 5 6 11 10 12 17 14 13 On Entrance 9 | . 5 6 9 8 11 21 15 14 Avg Prop Armor Cover (%) 12 | . . . 8 4 5 22 22 16 Naked Turns . | . . . . . . . . . Heaviest Build 15 | 7 8 9 15 8 10 10 3 2 Greatest Support 20 | 20 20 20 9 13 14 14 3 10 Greatest Overweight (x) 2 | 1 . . 2 . . . . . Average Overweight (x) . | . . . . . . . . . Largest Inventory Capacity 5 | 5 5 5 5 5 5 5 5 5 Average Capacity 5 | 5 5 5 5 5 5 5 5 5 Most Carried 5 | 2 3 5 5 4 5 5 5 5 Average Carried 2 | . . 1 3 2 3 4 5 5 Final Capacity 5 | 5 5 5 5 5 5 5 5 5 Final Carried 5 | . 3 4 5 2 4 5 5 5 Class Distribution -------------------- 59% | Mutant 15% | Scavenger-Mutant 13% | Hacker-Mutant 11% | Hacker-Sprinter Dominant Class ---------------- Mutant | -10/Materials Scavenger-Mutant | -10/Mines Mutant | -9/Materials Mutant | -9/Mines Mutant | -8/Materials Hacker-Mutant | -7/Factory Hacker-Mutant | -7/DSF Hacker-Mutant | -6/Factory Resources | -11 -10 -10 -9 -9 -8 -7 -7 -6 ----------- Run | Yrd Mat Min Mat Min Mat Fac DSF Fac Matter Collected 506 | 227 69 93 57 . 60 . . . Remotely . | . . . . . . . . . Salvage Created 406 | . 205 125 76 . . . . . Parts 44 | . 17 20 7 . . . . . Haulers Intercepted . | . . . . . . . . . Recyclers Shooed . | . . . . . . . . . Parts Field Recycled . | . . . . . . . . . Retrieved Matter . | . . . . . . . . . Parts Self-Destructed . | . . . . . . . . . Prevented . | . . . . . . . . . Parts Restored . | . . . . . . . . . Kills | -11 -10 -10 -9 -9 -8 -7 -7 -6 ------- Run | Yrd Mat Min Mat Min Mat Fac DSF Fac Combat Hostiles Destroyed 19 | . 7 11 1 . . . . . Guns 9 | . 4 5 . . . . . . AOE 10 | . 3 6 1 . . . . . Classes Destroyed 7 | . 4 1 2 . . . . . Worker 2 | . 1 . 1 . . . . . Operator 1 | . . . 1 . . . . . Watcher 1 | . 1 . . . . . . . Swarmer 9 | . 3 6 . . . . . . Grunt 7 | . 4 3 . . . . . . Sentry 1 | . . . 1 . . . . . Assembled 2 | . . 2 . . . . . . Best Kill Streak 5 | . 4 5 2 . . . . . Combat Bots Only 3 | . 3 3 1 . . . . . Max Kills in Single Turn 3 | . 3 2 1 . . . . . Gunslinging . | . . . . . . . . . Exploded 2 | . 2 2 1 . . . . . Melee . | . . . . . . . . . Uniques/NPCs Destroyed . | . . . . . . . . . Combat | -11 -10 -10 -9 -9 -8 -7 -7 -6 -------- Run | Yrd Mat Min Mat Min Mat Fac DSF Fac Hostile Shots Fired 108 | . 23 37 13 12 . . 1 22 Missed 41 | . 8 12 3 5 . . . 13 Hits 67 | . 15 25 10 7 . . 1 9 Projectile 67 | . 15 25 10 7 . . 1 9 AOE 6 | . . 6 . . . . . . Part Disruptions 1 | . . . . . . . . 1 Damage Taken 801 | . 148 371 105 40 . . 33 104 Core 252 | . 35 113 31 13 . . 13 47 Absorbed by Shields . | . . . . . . . . . Ignored by Resistances 242 | . 47 112 30 14 . . 9 30 Regen/Repaired (Parts) 17 | . . . . . 17 . . . Core Remaining (%) 85 | 100 . 40 . 89 100 . 98 . Volleys Fired 46 | . 13 22 11 . . . . . Largest 2 | . 2 2 1 . . . . . Hottest 63 | . 60 60 63 . . . . . Shots Fired 69 | . 26 32 11 . . . . . Gun 53 | . 26 24 3 . . . . . Cannon 6 | . . . 6 . . . . . Launcher 10 | . . 8 2 . . . . . Special . | . . . . . . . . . Kinetic 41 | . 13 22 6 . . . . . Thermal 3 | . . . 3 . . . . . Explosive 10 | . . 8 2 . . . . . Electromagnetic 15 | . 13 2 . . . . . . Robot Hit Streak 11 | . 10 11 6 . . . . . Robot Miss Streak 3 | . 1 3 1 . . . . . Penetration Max . | . . . . . . . . . Secondary Targets 2 | . 1 1 . . . . . . Max Gunslinging Chain 1 | . 1 1 . . . . . . Shots Hit Robots 47 | . 21 22 4 . . . . . Core Hits 32 | . 12 16 4 . . . . . Critical Kills . | . . . . . . . . . Critical Parts Destroyed 1 | . . 1 . . . . . . Critical Strikes 1 | . . 1 . . . . . . Destroy 1 | . . 1 . . . . . . Melee Attacks . | . . . . . . . . . Impact . | . . . . . . . . . Slashing . | . . . . . . . . . Piercing . | . . . . . . . . . Sneak Attacks . | . . . . . . . . . Combat Hostiles . | . . . . . . . . . Follow-up Attacks . | . . . . . . . . . Damage Inflicted 1372 | . 599 627 146 . . . . . Guns 444 | . 269 141 34 . . . . . Cannons . | . . . . . . . . . Explosions 928 | . 330 486 112 . . . . . Melee . | . . . . . . . . . Ramming . | . . . . . . . . . Kinetic 257 | . 127 130 . . . . . . Thermal 391 | . 330 27 34 . . . . . Explosive 571 | . . 459 112 . . . . . Electromagnetic 153 | . 142 11 . . . . . . Impact . | . . . . . . . . . Slashing . | . . . . . . . . . Piercing . | . . . . . . . . . Highest Corruption 2 | . . . . . . . . 2 Average Corruption 1 | . . . . . . . . 1 Corruption Purged . | . . . . . . . . . Corruption Blocked . | . . . . . . . . . Effects 1 | . . . . . . . . 1 Heat Flow Errors 1 | . . . . . . . . 1 Overload Shots . | . . . . . . . . . Overflow Damage 76 | . 30 46 . . . . . . Projectiles . | . . . . . . . . . Explosions 76 | . 30 46 . . . . . . Melee . | . . . . . . . . . Knockbacks . | . . . . . . . . . Impact . | . . . . . . . . . Kinetic . | . . . . . . . . . Secondary . | . . . . . . . . . Self-Inflicted Damage 71 | . . 71 . . . . . . Shots 5 | . . 5 . . . . . . Rammed . | . . . . . . . . . Targets Rammed . | . . . . . . . . . Kicked . | . . . . . . . . . Crushed . | . . . . . . . . . Highest Temperature 117 | . 36 8 36 . . . . 117 Average Temperature 17 | . 18 3 16 . . . . 67 Received Heat Transfer 212 | . 99 59 54 . . . . . Siege Activations . | . . . . . . . . . Martial Activations . | . . . . . . . . . Shielding Activations . | . . . . . . . . . Robots Disrupted . | . . . . . . . . . Combat Hostiles . | . . . . . . . . . Robots Corrupted . | . . . . . . . . . Combat Hostiles . | . . . . . . . . . Parts Fried . | . . . . . . . . . Impact Corruptions . | . . . . . . . . . Robots Melted . | . . . . . . . . . Combat Hostiles . | . . . . . . . . . Parts Melted . | . . . . . . . . . Heat Transferred 374 | . 300 . 74 . . . . . Parts Sabotaged . | . . . . . . . . . Parts Stolen . | . . . . . . . . . Parts Stripped . | . . . . . . . . . Power Chain Reactions 4 | . 3 1 . . . . . . Alert | -11 -10 -10 -9 -9 -8 -7 -7 -6 ------- Run | Yrd Mat Min Mat Min Mat Fac DSF Fac Maximum Alert Level 1 | . 1 . . . . . . . Low Security (%) 99 | 100 91 100 100 100 100 100 100 100 Level 1 . | . 8 . . . . . . . Level 2 . | . . . . . . . . . Level 3 . | . . . . . . . . . Level 4 . | . . . . . . . . . Level 5 . | . . . . . . . . . High Security . | . . . . . . . . . Max Security . | . . . . . . . . . Peak Influence 207 | . 207 193 77 . 37 14 . . Initial 64 | . . 64 63 . . 14 . . Average 43 | . 95 130 23 . 1 3 . . Influence Increases 703 | . 257 329 68 . 39 10 . . Destroy 0b10 Robot/C 340 | . 140 180 20 . . . . . Destroy 0b10 Robot/NC 20 | . 10 . 10 . . . . . Destroy Leader 72 | . 32 30 10 . . . . . Successful Hack 43 | . . . 9 . 24 10 . . Select Force Hacks 30 | . 30 . . . . . . . Disable Machine 27 | . 18 . 9 . . . . . Destroy Structure 96 | . 27 59 10 . . . . . Partial Spotted 15 | . . . . . 15 . . . Lose Combat Pursuer 60 | . . 60 . . . . . . Influence Decreases 703 | . 60 333 261 . 2 47 . . Entered New Map 286 | . . 133 130 . . 23 . . Time Decay 337 | . 60 140 111 . 2 24 . . Lost Part 80 | . . 60 20 . . . . . Squads Dispatched 6 | . 1 1 3 . 1 . . . Investigation 3 | . 1 1 1 . . . . . Extermination . | . . . . . . . . . Reinforcement 3 | . . . 2 . 1 . . . Assault . | . . . . . . . . . Garrison . | . . . . . . . . . Intercept . | . . . . . . . . . Searches Triggered . | . . . . . . . . . Construction Impeded . | . . . . . . . . . Haulers Reinforced . | . . . . . . . . . Active Scanning Responses . | . . . . . . . . . Cargo Convoy Interrupts . | . . . . . . . . . Stealth | -11 -10 -10 -9 -9 -8 -7 -7 -6 --------- Run | Yrd Mat Min Mat Min Mat Fac DSF Fac Distress Signals 3 | . . . 1 . 2 . . . Communications Jammed . | . . . . . . . . . Distress Signals . | . . . . . . . . . Times Spotted 51 | . 10 19 12 4 4 . 1 1 Peak Tracking Total 10 | . 3 5 5 3 10 . 1 1 Tactical Retreats 9 | . . 4 3 1 1 . . . ECM-based Alert Blocks 11 | . . . 4 2 5 . . . Traps | -11 -10 -10 -9 -9 -8 -7 -7 -6 ------- Run | Yrd Mat Min Mat Min Mat Fac DSF Fac Traps Triggered 2 | . . . 1 . . 1 . . Indirectly . | . . . . . . . . . Trap Hack Attempts . | . . . . . . . . . Triggered . | . . . . . . . . . Disarmed . | . . . . . . . . . Reprogrammed . | . . . . . . . . . Reused . | . . . . . . . . . Traps Extracted . | . . . . . . . . . Installed . | . . . . . . . . . Triggered . | . . . . . . . . . Machines | -11 -10 -10 -9 -9 -8 -7 -7 -6 ---------- Run | Yrd Mat Min Mat Min Mat Fac DSF Fac Machines Disabled 3 | . 2 . 1 . . . . . Max in Single Turn 2 | . 2 . 1 . . . . . Machines Repaired . | . . . . . . . . . Machines Dismantled . | . . . . . . . . . Machines Sabotaged . | . . . . . . . . . Overloaded Fab Kills . | . . . . . . . . . Hacking | -11 -10 -10 -9 -9 -8 -7 -7 -6 --------- Run | Yrd Mat Min Mat Min Mat Fac DSF Fac Machines Accessed 13 | . 2 . 6 . 2 3 . . Terminals 10 | . 1 . 5 . 1 3 . . Fabricators . | . . . . . . . . . Repair Stations 1 | . . . . . 1 . . . Recycling Units 2 | . 1 . 1 . . . . . Scanalyzers . | . . . . . . . . . Garrison Access . | . . . . . . . . . Total Hacks 29 | . 3 . 16 . 4 6 . . Successful 17 | . 3 . 6 . 4 4 . . Failed 12 | . . . 10 . . 2 . . Catastrophic . | . . . . . . . . . Database Lockouts . | . . . . . . . . . Manual 2 | . 1 . 1 . . . . . Terminals 23 | . 2 . 13 . 2 6 . . Fabricators . | . . . . . . . . . Repair Stations 2 | . . . . . 2 . . . Recycling Units 4 | . 1 . 3 . . . . . Scanalyzers . | . . . . . . . . . Garrison Access . | . . . . . . . . . Terminal Hacks 11 | . 2 . 3 . 2 4 . . Record 1 | . . . . . . 1 . . Robot Analysis 2 | . . . . . 2 . . . Open DSF 1 | . . . . . . 1 . . Terminal Index 1 | . . . 1 . . . . . Recycling Unit Index 1 | . . . 1 . . . . . Alert Level 1 | . 1 . . . . . . . Locate Traps 1 | . 1 . . . . . . . Dispatch Records 2 | . . . . . . 2 . . Zone Layout 1 | . . . 1 . . . . . Fabricator Hacks . | . . . . . . . . . Repair Station Hacks 2 | . . . . . 2 . . . Scan Component 1 | . . . . . 1 . . . Repair 1 | . . . . . 1 . . . Recycling Unit Hacks 3 | . . . 3 . . . . . Process 1 | . . . 1 . . . . . Retrieve Matter 2 | . . . 2 . . . . . Scanalyzer . | . . . . . . . . . Garrison Access Hacks . | . . . . . . . . . Unauthorized Hacks 1 | . 1 . . . . . . . Terminals . | . . . . . . . . . Fabricators . | . . . . . . . . . Repair Stations . | . . . . . . . . . Recycling Units 1 | . 1 . . . . . . . Tunnel 1 | . 1 . . . . . . . Scanalyzers . | . . . . . . . . . Garrison Access . | . . . . . . . . . Data Cores Recovered . | . . . . . . . . . Used . | . . . . . . . . . Hacking Detections 9 | . 1 . 5 . 1 2 . . Full Trace Events 2 | . . . 2 . . . . . Feedback Events . | . . . . . . . . . Feedback Blocked . | . . . . . . . . . Robot Schematics Acquired . | . . . . . . . . . Robots Built . | . . . . . . . . . Authchips . | . . . . . . . . . Time . | . . . . . . . . . Total Robot Build Rating . | . . . . . . . . . Part Schematics Acquired . | . . . . . . . . . Parts Built . | . . . . . . . . . Authchips . | . . . . . . . . . Time . | . . . . . . . . . Total Part Build Rating . | . . . . . . . . . Part Studies Acquired . | . . . . . . . . . Parts Repaired 1 | . . . . . 1 . . . Time 38 | . . . . . 38 . . . Parts Recycled . | . . . . . . . . . Recycled Matter 25 | . . . 25 . . . . . Retrieved Matter 25 | . . . 25 . . . . . Retrieved Components . | . . . . . . . . . Parts Scanalyzed . | . . . . . . . . . Part Schematics Acquired . | . . . . . . . . . Parts Damaged . | . . . . . . . . . Bothacking | -11 -10 -10 -9 -9 -8 -7 -7 -6 ------------ Run | Yrd Mat Min Mat Min Mat Fac DSF Fac Used RIF Installer . | . . . . . . . . . Robots Hacked . | . . . . . . . . . Non-combat . | . . . . . . . . . Combat . | . . . . . . . . . Robot Hacks Applied . | . . . . . . . . . Relay Couplers Released . | . . . . . . . . . Fabnet Peak Effective % . | . . . . . . . . . Robots Rewired . | . . . . . . . . . Allies Hacked . | . . . . . . . . . Hacks Repelled . | . . . . . . . . . Allies | -11 -10 -10 -9 -9 -8 -7 -7 -6 -------- Run | Yrd Mat Min Mat Min Mat Fac DSF Fac Total Allies . | . . . . . . . . . Largest Group . | . . . . . . . . . Highest-Rated Group . | . . . . . . . . . Highest-Rated Ally . | . . . . . . . . . Total Orders . | . . . . . . . . . Ally Attacks . | . . . . . . . . . Total Damage . | . . . . . . . . . Kills . | . . . . . . . . . Allies Corrupted . | . . . . . . . . . Allies Melted . | . . . . . . . . . Intel | -11 -10 -10 -9 -9 -8 -7 -7 -6 ------- Run | Yrd Mat Min Mat Min Mat Fac DSF Fac Active Infowar (turns) 784 | . . . 354 93 170 147 15 5 Sensors 678 | . . . 290 56 170 147 15 . ECM 571 | . . . 225 93 170 78 . 5 Robot Analysis Total 2 | . . . . . 2 . . . Derelict Logs Recovered 1 | . . 1 . . . . . . Drone Launches . | . . . . . . . . . Drone Recoveries . | . . . . . . . . . Exploration | -11 -10 -10 -9 -9 -8 -7 -7 -6 ------------- Run | Yrd Mat Min Mat Min Mat Fac DSF Fac Turns Passed 1411 | 46 135 294 382 93 170 169 23 99 Spaces Moved 2224 | 39 75 443 523 157 270 443 45 229 Core 292 | 15 . 3 . . . 179 45 50 Treads . | . . . . . . . . . Legs 102 | 24 75 3 . . . . . . Wheels . | . . . . . . . . . Hover 564 | . . 68 206 157 133 . . . Flight 1266 | . . 369 317 . 137 264 . 179 Fastest Speed 29 | 50 120 34 34 56 29 29 50 32 Average Speed 48 | 94 120 39 56 56 42 37 50 37 Slowest Speed 180 | 120 120 120 180 56 56 50 50 50 Overloaded Moves . | . . . . . . . . . Propulsion Burnouts . | . . . . . . . . . Robots Hopped 4 | . . . . . . 3 . 1 Potential Cave-ins 1 | . . 1 . . . . . . Cave-ins Triggered . | . . . . . . . . . Exploration Rate (%) 31 | 4 27 74 59 34 26 9 40 7 Regions Visited 8 Branch Regions 2 Pre-discovered Areas 2 | . 1 1 . . . . . . Known Exits Taken 4 | . . . 1 1 1 1 . . Unknown Exits Taken 3 | 1 1 1 . . . . . . Scrap Searched 1 | . . 1 . . . . . . Spaces Dug 3 | . . . 3 . . . . . Terrain Destroyed 119 | . 30 80 9 . . . . . Melee . | . . . . . . . . . Projectile 3 | . . . 3 . . . . . AOE 116 | . 30 80 6 . . . . . Terrain Rammed . | . . . . . . . . . Walls Destroyed . | . . . . . . . . . Machines Disabled . | . . . . . . . . . Actions | -11 -10 -10 -9 -9 -8 -7 -7 -6 --------- Run | Yrd Mat Min Mat Min Mat Fac DSF Fac Total 2497 | 48 94 534 606 161 327 442 44 241 Wait 121 | . 2 41 25 2 38 . . 13 Move 2208 | 38 74 442 522 156 269 436 44 227 Hop 4 | . . . . . . 3 . 1 Pick Up 43 | 5 4 11 13 . 8 2 . . Fast Attach . | . . . . . . . . . Attach 39 | 5 1 10 15 3 5 . . . Detach 11 | . . 1 8 . 2 . . . Swap 5 | . . 1 3 . 1 . . . Drop 20 | . . 6 9 . 4 1 . . Fire 46 | . 13 22 11 . . . . . Melee . | . . . . . . . . . Ram . | . . . . . . . . . Kick . | . . . . . . . . . Crush . | . . . . . . . . . Escape Stasis . | . . . . . . . . . Rewire . | . . . . . . . . . Trap . | . . . . . . . . . Miscellaneous . | . . . . . . . . . Route ------- -11/Scrapyard -10/Materials -10/Mines -9/Materials -9/Mines -8/Materials -7/Factory -7/DSF -6/Factory History --------- Turn | Location | Event 8 | -11/Scrapyard | Discovered new exit (range 15) 47 | -11/Scrapyard | Entered Materials 131 | -10/Materials | Discovered new exit (range 15) 182 | -10/Materials | Entered Mines 330 | -10/Mines | Learned location of Mines (-9) 341 | -10/Mines | Assembled infested the area 346 | -10/Mines | Assisted by a Guerilla fighting off Assembled 408 | -10/Mines | Met a Derelict shopkeep closing up shop 438 | -10/Mines | Lost 4 parts (1p1n1u1w) 458 | -10/Mines | Core integrity fell below 50% 473 | -10/Mines | Discovered new exit (range 8) 476 | -10/Mines | Entered Materials 476 | -9/Materials | Evolved 2 slots: Propulsion x1, Utility x1 706 | -9/Materials | Build established: Mutant 850 | -9/Materials | Discovered new exit (range 5) 851 | -9/Materials | Identified exit to Mines 858 | -9/Materials | Entered Mines 890 | -9/Mines | Discovered new exit (range 12) 897 | -9/Mines | Identified exit to Materials 951 | -9/Mines | Entered Materials 951 | -8/Materials | Evolved 2 slots: Utility x2 997 | -8/Materials | Repaired Cesium-ion Thruster 1112 | -8/Materials | Discovered new exit (range 15) 1117 | -8/Materials | Identified exit to Factory 1121 | -8/Materials | Entered Factory 1121 | -7/Factory | Evolved 2 slots: Power x1, Propulsion x1 1289 | -7/Factory | Identified exit to DSF 1290 | -7/Factory | Entered DSF 1305 | -7/DSF | Discovered new exit (range 15) 1312 | -7/DSF | Identified exit to Factory 1313 | -7/DSF | Entered Factory 1313 | -6/Factory | Evolved 2 slots: Utility x1, Weapon x1 1412 | -6/Factory | Self-destructed Last Messages --------------- Acquired Lgt. Nuclear Core. U-05 Engineer works on Manufacturing Mainframe. Connecting with DSF Access... >>Open(DSF) DSF access unlocked. EXIT=UNLOCKED: DSF LOCATION=DSF AMBIENT_HEAT=-10 GOAL=ESCAPE Sensor Array destroyed. EXIT=FOUND EXIT=IDENTIFIED: FACTORY [Achievement: Window Shopping] PARAMETERS=UTILITY+1,WEAPON+1 LOCATION=FACTORY GOAL=ESCAPE ECM Suite destroyed. System corrupted: Heat flow error (+150). K-01 Serf collects debris. Map ----- +----------------------------------------------------+ | ?????????????????????????????????????????????????? | | ?????????????????????????????????????????????????? | | ?????????????????????????????????????????????????? | | ?????????????????????????????????????????????????? | | ?????????????????????????????????????????????????? | | ?????????????????????????????????????????????????? | | ?????????????????????????????????????????????????? | | ?????????????????????????????????????????????????? | | ?????????????????????????????????????????????????? | | ?????????????????????????????????????????????????? | | ?????????????????????????????????????????????????? | | ?????????????????????????????????????????????????? | | ?????????????????????????????????????????????????? | | ?????????????????????????????????????????????????? | | ?????????????????????????????????????????????????? | | ???? ??????????????????????????????????????????? | | ?? ??????????????????????????????????????????? | | ?# #??????????############???????????????????? | | ?# #??????????# #???????????????????? | | ?# #??????????# #???????????????????? | | ?# #??????????# #???????????????????? | | ?# #??????????# #???????????????????? | | ?# #??????????# #???????????????????? | | ?+ #??????????# #???????????????????? | | ?# ############ #????????????? ?????? | | ?# # ## @ #???????????? ??? | | ## # ## #??????????? ??? | | ## # ## #????????? ! ?? | | ## # ## #???????? ??? | | ## + ## k#???????"" ???? | | ## # ## k k #???????" ????? | | ## # ## t #???????"F """????? | | ## # ## #???????"" """????? | | ## ###+#############+############ """????? | | ## """"???? | | ## """"???? | | ## """" """" ?? | | ## """" | | ## """" | | ## """" ###+################### ###+#### | | ## """" # #????????? #??????? | | """" # #????????? #??????? | | # #????????? #??????? | | + """" """" #?????????? +??????? | | # """" """" #?????????? #??????? | | # """" """" #?????????? #??????? | | ############### """" """" #?????????? #??????? | | #?????????# """" """" #??????????? #??????? | | #?????????# """" """" #??????????? #??????? | | #?????????# #??????????? #??????? | +----------------------------------------------------+ Best States ------------- Heat Dissipation 37 Energy Generation 14 Energy Capacity 240 Matter Stores 300 Matter Capacity 300 Sight Range 16 Robot Scan Range 14 Terrain Scan Density 10 ECM Strength 1 Resistance: KI 20 Resistance: TH 20 Resistance: EX 20 Resistance: EM 20 Resistance: I 20 Resistance: S 20 Resistance: P 20 Evasion (%) 64 Offensive Hacking 20 Item Schematics ----------------- None Robot Schematics ------------------ None Fabricated ------------ Nothing Repaired ---------- Cesium-ion Thruster | 32% | -8/Materials Studied --------- None Alien Tech Used ----------------- None Achievements -------------- Brute Force Resistances Are Futile Slippery One Window Shopping Challenges ------------ None Game ------ Seed TransportPointPod Manual? 0 Play Time 00:53:46 Cumulative 12.8 hours Start 2025.12.22 @ 15:58:08 End 2025.12.22 @ 20:04:39 Sessions 1 Manual Loads 0 Difficulty Adventurer Special Mode None Game No. 7 Rogue 0 Adventurer 7 Explorer 0 Win Type - Total 0 Types 0/0/0/0/0/0/0/0/0/0 Lore% 7 Gallery% 13 Achievement% 14 Wizard Run 0 Options --------- Layout 1 ASCII 0 Keyboard 0 Movement Mouse Keybinds 0 Fullscreen 1 Font 24/Smallcaps Map View 50x40 Zoom Use 0% Tactical HUD 0 Map Filters NONE Filters NONE Steam 1 RUN: 74a7f1e6-b0e3-48b7-b7bc-b36749476142